Cogmind - Beta 16 @@@ ROGUE MODE // 2025.11.16 @ 19:42:12 Player: shapeshifter Result: Destroyed by D-53 Grenadier with Mini Grenade Launcher Performance ------------- Evolutions (0) 0 Regions Visited (3) 600 Robots Destroyed (25) 125 Value Destroyed (785) 785 Prototype IDs (13) 260 Alien Tech Used (0) 0 Bonus (113) 113 TOTAL SCORE: 1883 Bonus ------- Follower Combat Kills 296 Friendly Fire -183 Cogmind --------- Core Integrity 0/250 Matter 300/300 Energy 187/200 System Corruption 3% Temperature Warm (130) Movement Rolling (205) Ox7 Location -7/Recycling Parts ------- > --- POWER (1) -------- Subdweller Power Source > --- PROPULSION (2) --- Armored Huge Wheel > --- UTILITY (2) ------ Humpback > --- WEAPON (2) ------- Subdweller Laser > --- INVENTORY (35) --- Subdweller Power Source Light Armored Exoskeleton Cargo Legs Subdweller Monowheel Subdweller Monowheel High-capacity Storage Unit Structural Scanner Subdweller Optics Seismic Detector Transmission Jammer Scrap Shield V3-11A's Pendant Subdweller Laser Subdweller Beam Cannon Grenade Launcher Multitool Multitool SUBCON Basin (Full) Peak State ------------ > --- POWER ------------ Subdweller Power Source > --- PROPULSION ------- Armored Huge Wheel > --- UTILITY ---------- Humpback > --- WEAPON ----------- Heavy Riot Gun Subdweller Laser > --- INVENTORY -------- Subdweller Power Source Light Armored Exoskeleton Cargo Legs Subdweller Monowheel Subdweller Monowheel High-capacity Storage Unit Structural Scanner Subdweller Optics Seismic Detector Transmission Jammer Scrap Shield V3-11A's Pendant Subdweller Laser Subdweller Beam Cannon Grenade Launcher Multitool Multitool SUBCON Basin [Rating: 41] Favorites ----------- Power Ion Engine Engine Ion Engine Propulsion Wheel Treads Light Treads Wheel Wheel Utility V3-11A's Pendant Device V3-11A's Pendant Storage High-capacity Storage Unit Protection Scrap Shield Weapon Subdweller Laser Energy Gun Subdweller Laser Energy Cannon Subdweller Beam Cannon Ballistic Gun Subdweller Machine Gun Launcher Grenade Launcher Build | -11 -10 -10 -7 ------- Run | Yrd Mat Sub Rec Slots Evolved . | . . . . Power . | . . . . Propulsion . | . . . . Utility . | . . . . Weapon . | . . . . Parts Attached 29 | 7 2 14 6 Power 4 | 1 . 1 2 Engine 4 | 1 . 1 2 Core . | . . . . Reactor . | . . . . Propulsion 9 | 2 . 5 2 Treads 2 | 2 . . . Leg . | . . . . Wheel 7 | . . 5 2 Hover . | . . . . Flight . | . . . . Utility 8 | 2 1 5 . Device 3 | 1 . 2 . Storage 4 | 1 1 2 . Processor . | . . . . Hackware . | . . . . Protection 1 | . . 1 . Artifact . | . . . . Weapon 8 | 2 1 3 2 Energy Gun 5 | 2 . 1 2 Energy Cannon 1 | . . 1 . Ballistic Gun 1 | . . 1 . Ballistic Cannon . | . . . . Launcher 1 | . 1 . . Special Weapon . | . . . . Impact Weapon . | . . . . Slashing Weapon . | . . . . Piercing Weapon . | . . . . Special Melee Weapon . | . . . . Unidentified Prototypes 1 | . . 1 . Parts Lost 7 | . . 2 5 Power 2 | . . 1 1 Propulsion 3 | . . 1 2 Utility . | . . . . Weapon 2 | . . . 2 Highest Loss Streak 4 | . . 1 4 To Critical Strikes . | . . . . Average Backups 12 | 3 6 13 17 Power 1 | . 1 1 1 Propulsion 3 | 1 2 3 3 Utility 3 | . 1 3 6 Weapon 3 | . 1 3 3 Tool/Special . | . . . . Unused Backups 13 | . . 6 7 Power 1 | . . . 1 Propulsion 1 | . . . 1 Utility 7 | . . 5 2 Weapon 2 | . . 1 1 Tool/Special 2 | . . . 2 Average Slot Usage (%) 94 | . 100 96 73 Engine 13 | . 14 13 10 Treads 8 | . 28 6 . Wheel 18 | . . 21 20 Device 10 | . 14 11 . Storage 12 | . 14 11 14 Protection 1 | . . 1 . Energy Gun 16 | . 27 14 18 Energy Cannon 2 | . . 2 . Ballistic Gun 8 | . . 9 7 Peak Build Rating 41 | 7 7 32 41 Average Rating 14 | 5 7 14 35 On Entrance 11 | . 7 7 32 Avg Prop Armor Cover (%) . | . . . . Naked Turns . | . . . . Heaviest Build 218 | 14 30 213 218 Greatest Support 40 | 40 40 40 28 Greatest Overweight (x) 10 | . . 10 10 Average Overweight (x) 1 | . . 1 9 Largest Inventory Capacity 35 | 8 15 35 35 Average Capacity 18 | 7 9 18 35 Most Carried 35 | 5 8 35 35 Average Carried 15 | 3 6 15 34 Final Capacity 35 | 8 15 35 35 Final Carried 35 | 4 8 35 35 Class Distribution -------------------- 77% | Mutant 13% | Hauler-Mutant 9% | Subdweller-Mutant Dominant Class ---------------- Mutant | -10/Materials Mutant | -10/Subcaves Hauler-Mutant | -7/Recycling Resources | -11 -10 -10 -7 ----------- Run | Yrd Mat Sub Rec Matter Collected 717 | 270 . 259 188 Remotely . | . . . . Salvage Created 1107 | 30 206 328 543 Parts 71 | 3 14 26 28 Haulers Intercepted 1 | . 1 . . Recyclers Shooed 1 | . . . 1 Parts Field Recycled . | . . . . Retrieved Matter . | . . . . Parts Self-Destructed 15 | . . 15 . Prevented . | . . . . Parts Restored . | . . . . Kills | -11 -10 -10 -7 ------- Run | Yrd Mat Sub Rec Combat Hostiles Destroyed 16 | . 3 5 8 Guns 7 | . 3 2 2 AOE 9 | . . 3 6 Classes Destroyed 12 | 1 3 3 5 Tunneler 1 | 1 . . . Hauler 1 | . 1 . . Recycler 2 | . . . 2 Watcher 3 | . 3 . . Grunt 5 | . 3 . 2 Duelist 1 | . . . 1 Protector 1 | . . . 1 Sentry 2 | . . 1 1 Hunter 2 | . . . 2 Programmer 2 | . . . 2 Artisan 2 | . . 2 . Subdweller 5 | . . 4 1 Best Kill Streak 10 | 1 3 3 10 Combat Bots Only 8 | . 2 3 8 Max Kills in Single Turn 3 | 1 1 2 3 Gunslinging . | . . . . Exploded 2 | . . 2 2 Melee . | . . . . Uniques/NPCs Destroyed . | . . . . Combat | -11 -10 -10 -7 -------- Run | Yrd Mat Sub Rec Hostile Shots Fired 115 | . 14 24 77 Missed 32 | . 3 9 20 Hits 83 | . 11 15 57 Melee 3 | . . . 3 Projectile 80 | . 11 15 54 AOE 4 | . . . 4 Critical Strikes 4 | . . . 4 Damage Taken 1363 | . 120 325 918 Core 250 | . . 40 210 Absorbed by Shields . | . . . . Core Remaining (%) 100 | 100 . . . Volleys Fired 99 | 3 29 50 17 Largest 2 | 2 2 2 2 Hottest 120 | 90 90 90 120 Shots Fired 152 | 6 56 65 25 Gun 126 | 6 55 47 18 Cannon 15 | . . 15 . Launcher 11 | . 1 3 7 Special . | . . . . Kinetic 26 | . . 22 4 Thermal 110 | 6 55 40 9 Explosive 11 | . 1 3 7 Electromagnetic 5 | . . . 5 Robot Hit Streak 8 | 2 8 5 3 Robot Miss Streak 6 | 1 6 5 5 Penetration Max . | . . . . Secondary Targets 1 | . . . 1 Max Gunslinging Chain 1 | . . . 1 Shots Hit Robots 65 | 3 24 23 15 Core Hits 59 | 1 11 12 35 Critical Kills . | . . . . Critical Parts Destroyed . | . . . . Critical Strikes 2 | . 2 . . Burn 2 | . 2 . . Melee Attacks . | . . . . Impact . | . . . . Slashing . | . . . . Piercing . | . . . . Sneak Attacks . | . . . . Combat Hostiles . | . . . . Follow-up Attacks . | . . . . Damage Inflicted 2206 | 48 299 716 1143 Guns 932 | 48 299 332 253 Cannons 194 | . . 194 . Explosions 1080 | . . 190 890 Melee . | . . . . Ramming . | . . . . Kinetic 198 | . . 125 73 Thermal 1026 | 48 299 401 278 Explosive 913 | . . 190 723 Electromagnetic 69 | . . . 69 Impact . | . . . . Slashing . | . . . . Piercing . | . . . . Highest Corruption 3 | . . . 3 Average Corruption 2 | . . . 2 Corruption Purged . | . . . . Corruption Blocked . | . . . . Effects 2 | . . . 2 Heat Flow Errors 1 | . . . 1 Alerts 1 | . . . 1 Overload Shots . | . . . . Overflow Damage 9 | . . . 9 Projectiles . | . . . . Explosions 9 | . . . 9 Melee . | . . . . Knockbacks . | . . . . Impact . | . . . . Kinetic . | . . . . Secondary . | . . . . Self-Inflicted Damage 68 | . . . 68 Shots 2 | . . . 2 Rammed . | . . . . Targets Rammed . | . . . . Kicked . | . . . . Crushed . | . . . . Highest Temperature 330 | 90 202 . 330 Average Temperature 88 | 48 60 . 149 Received Heat Transfer 150 | . 66 36 48 Siege Activations . | . . . . Martial Activations . | . . . . Shielding Activations . | . . . . Robots Disrupted . | . . . . Combat Hostiles . | . . . . Robots Corrupted . | . . . . Combat Hostiles . | . . . . Parts Fried . | . . . . Impact Corruptions . | . . . . Robots Melted . | . . . . Combat Hostiles . | . . . . Parts Melted 5 | 1 4 . . Heat Transferred 1913 | 124 941 669 179 Parts Sabotaged . | . . . . Parts Stolen . | . . . . Parts Stripped . | . . . . Power Chain Reactions 1 | . . . 1 Alert | -11 -10 -10 -7 ------- Run | Yrd Mat Sub Rec Maximum Alert Level . | . . . . Low Security (%) 100 | 100 100 . 100 Level 1 . | . . . . Level 2 . | . . . . Level 3 . | . . . . Level 4 . | . . . . Level 5 . | . . . . High Security . | . . . . Max Security . | . . . . Peak Influence 176 | 5 47 . 176 Initial 31 | . . . 31 Average 35 | . 9 . 86 Influence Increases 685 | 5 112 220 348 Destroy 0b10 Robot/C 440 | . 60 160 220 Destroy 0b10 Robot/NC 60 | 5 20 . 35 Destroy Leader 38 | . 28 10 . Allied During Kill 64 | . . 50 14 Successful Hack 28 | . . . 28 Destroy Structure 40 | . 4 . 36 Lose Combat Pursuer 15 | . . . 15 Influence Decreases 557 | 5 102 165 285 Entered New Map 40 | . . 6 34 Time Decay 351 | 5 102 94 150 Lost Part 48 | . . 7 41 Lost Ally 118 | . . 58 60 Squads Dispatched 2 | . 2 . . Investigation 1 | . 1 . . Extermination . | . . . . Reinforcement 1 | . 1 . . Assault . | . . . . Garrison . | . . . . Intercept . | . . . . Searches Triggered . | . . . . Construction Impeded . | . . . . Haulers Reinforced . | . . . . Active Scanning Responses . | . . . . Cargo Convoy Interrupts . | . . . . Stealth | -11 -10 -10 -7 --------- Run | Yrd Mat Sub Rec Distress Signals 1 | . . . 1 Communications Jammed . | . . . . Distress Signals . | . . . . Times Spotted 37 | . 7 19 11 Peak Tracking Total 8 | . 2 5 8 Tactical Retreats 1 | . . . 1 Traps | -11 -10 -10 -7 ------- Run | Yrd Mat Sub Rec Traps Triggered 1 | . . 1 . Indirectly . | . . . . Trap Hack Attempts . | . . . . Triggered . | . . . . Disarmed . | . . . . Reprogrammed . | . . . . Reused . | . . . . Traps Extracted . | . . . . Installed . | . . . . Triggered . | . . . . Machines | -11 -10 -10 -7 ---------- Run | Yrd Mat Sub Rec Machines Disabled 3 | . . 3 . Max in Single Turn 2 | . . 2 . Machines Repaired . | . . . . Machines Dismantled . | . . . . Machines Sabotaged . | . . . . Overloaded Fab Kills . | . . . . Hacking | -11 -10 -10 -7 --------- Run | Yrd Mat Sub Rec Machines Accessed 7 | . 2 4 1 Terminals 2 | . 1 . 1 Fabricators . | . . . . Repair Stations . | . . . . Recycling Units 1 | . 1 . . Scanalyzers . | . . . . Garrison Access . | . . . . Total Hacks 14 | . 4 6 4 Successful 10 | . 2 6 2 Failed 4 | . 2 . 2 Catastrophic 2 | . 1 . 1 Database Lockouts . | . . . . Manual 6 | . 2 . 4 Terminals 6 | . 2 . 4 Fabricators . | . . . . Repair Stations . | . . . . Recycling Units 2 | . 2 . . Scanalyzers . | . . . . Garrison Access . | . . . . Terminal Hacks 6 | . . 6 . Record 3 | . . 3 . Open Door 1 | . . 1 . Proto ID Catalog 1 | . . 1 . Release Object 1 | . . 1 . Fabricator Hacks . | . . . . Repair Station Hacks . | . . . . Recycling Unit Hacks 1 | . 1 . . Retrieve Components 1 | . 1 . . Scanalyzer . | . . . . Garrison Access Hacks . | . . . . Unauthorized Hacks 3 | . 1 . 2 Terminals 3 | . 1 . 2 Botnet 1 | . . . 1 Skim 2 | . 1 . 1 Fabricators . | . . . . Repair Stations . | . . . . Recycling Units . | . . . . Scanalyzers . | . . . . Garrison Access . | . . . . Data Cores Recovered . | . . . . Used . | . . . . Hacking Detections 3 | . 2 . 1 Full Trace Events 1 | . 1 . . Feedback Events . | . . . . Feedback Blocked . | . . . . Robot Schematics Acquired . | . . . . Robots Built . | . . . . Authchips . | . . . . Time . | . . . . Total Robot Build Rating . | . . . . Part Schematics Acquired . | . . . . Parts Built . | . . . . Authchips . | . . . . Time . | . . . . Total Part Build Rating . | . . . . Part Studies Acquired . | . . . . Parts Repaired . | . . . . Time . | . . . . Parts Recycled . | . . . . Recycled Matter . | . . . . Retrieved Matter . | . . . . Retrieved Components . | . . . . Parts Scanalyzed . | . . . . Part Schematics Acquired . | . . . . Parts Damaged . | . . . . Bothacking | -11 -10 -10 -7 ------------ Run | Yrd Mat Sub Rec Used RIF Installer . | . . . . Robots Hacked . | . . . . Non-combat . | . . . . Combat . | . . . . Robot Hacks Applied . | . . . . Relay Couplers Released . | . . . . Fabnet Peak Effective % . | . . . . Robots Rewired 4 | . . . 4 Allies Hacked 1 | . . . 1 Hacks Repelled . | . . . . Allies | -11 -10 -10 -7 -------- Run | Yrd Mat Sub Rec Total Allies 12 | . . 8 4 Largest Group 7 | . . 7 5 Highest-Rated Group 133 | . . 133 95 Highest-Rated Ally 34 | . . 19 34 Total Orders . | . . . . Ally Attacks 69 | . . 44 25 Total Damage 1244 | . . 710 534 Kills 16 | . . 10 6 Allies Corrupted . | . . . . Allies Melted . | . . . . Intel | -11 -10 -10 -7 ------- Run | Yrd Mat Sub Rec Active Infowar (turns) 760 | 35 446 279 . Structural 2 | . . 2 . Seismic 758 | 35 446 277 . Robot Analysis Total . | . . . . Derelict Logs Recovered 2 | . . 2 . Drone Launches . | . . . . Drone Recoveries . | . . . . Exploration | -11 -10 -10 -7 ------------- Run | Yrd Mat Sub Rec Turns Passed 4312 | 120 446 3438 308 Spaces Moved 2818 | 69 193 2460 96 Core 15 | 15 . . . Treads 682 | 54 193 435 . Legs . | . . . . Wheels 2121 | . . 2025 96 Hover . | . . . . Flight . | . . . . Fastest Speed 50 | 50 160 95 205 Average Speed 128 | 136 160 122 222 Slowest Speed 230 | 160 160 230 230 Overloaded Moves . | . . . . Propulsion Burnouts . | . . . . Robots Hopped . | . . . . Potential Cave-ins . | . . . . Cave-ins Triggered . | . . . . Exploration Rate (%) 38 | 4 34 94 23 Regions Visited 3 Branch Regions 2 Pre-discovered Areas . | . . . . Known Exits Taken 1 | . . 1 . Unknown Exits Taken 2 | 1 1 . . Scrap Searched 3 | . . 3 . Spaces Dug . | . . . . Terrain Destroyed 45 | . 4 18 23 Melee . | . . . . Projectile 1 | . . 1 . AOE 44 | . 4 17 23 Terrain Rammed . | . . . . Walls Destroyed . | . . . . Machines Disabled . | . . . . Actions | -11 -10 -10 -7 --------- Run | Yrd Mat Sub Rec Total 3358 | 89 274 2830 165 Wait 279 | . 45 233 1 Move 2815 | 68 192 2459 96 Hop . | . . . . Pick Up 67 | 11 4 48 4 Fast Attach . | . . . . Attach 19 | 7 . 8 4 Detach . | . . . . Swap 19 | . 3 12 4 Drop 22 | . 1 18 3 Fire 99 | 3 29 50 17 Melee . | . . . . Ram . | . . . . Kick . | . . . . Crush . | . . . . Escape Stasis . | . . . . Rewire 36 | . . . 36 Trap . | . . . . Miscellaneous 2 | . . 2 . Route ------- -11/Scrapyard -10/Materials (discovered 2 exits: [*Mat] / *Sub) -10/Subcaves (discovered 4 exits: *Mat x2 / *Rec / [*Scr]) -7/Recycling History --------- Turn | Location | Event 9 | -11/Scrapyard | Discovered new exit (range 15) 121 | -11/Scrapyard | Entered Materials 312 | -10/Materials | Build established: Mutant 337 | -10/Materials | Discovered new exit (range 11) 555 | -10/Materials | Discovered new exit (range 7) 567 | -10/Materials | Entered Subcaves 568 | -10/Subcaves | Approached by a straggling Scientist 641 | -10/Subcaves | Ambushed by angry Subdweller bent on revenge 781 | -10/Subcaves | Shifting Twisted Machinery released Sub. Optics 782 | -10/Subcaves | Shifting Twisted Machinery released Sub. Machine Gun 1085 | -10/Subcaves | Scientist uncovered a shortcut to Scraptown 1131 | -10/Subcaves | A swath of the cavern ceiling suddenly collapsed 1144 | -10/Subcaves | Build established: Subdweller-Mutant 1254 | -10/Subcaves | Visited triangular shrine 1265 | -10/Subcaves | Found Prototype Device 1266 | -10/Subcaves | Identified V3-11A's Pendant 1271 | -10/Subcaves | Befriended Subdweller 1582 | -10/Subcaves | Build established: Mutant 1819 | -10/Subcaves | Visited 4L-MR0's lab 1833 | -10/Subcaves | Found Cargo Legs 1887 | -10/Subcaves | Disturbed a concealed Subdweller 1921 | -10/Subcaves | Befriended Subdweller 1921 | -10/Subcaves | Befriended Subdweller 2101 | -10/Subcaves | Befriended Subdweller 2368 | -10/Subcaves | Visited Clippyterm 2372 | -10/Subcaves | Identified exit to Materials 2372 | -10/Subcaves | Identified exit to Recycling 2562 | -10/Subcaves | Learned Materials emergency access door positions 2576 | -10/Subcaves | Befriended Subdweller 2655 | -10/Subcaves | Shifting Twisted Machinery released Battle Cannon 3011 | -10/Subcaves | Befriended Subdweller 3072 | -10/Subcaves | Ambushed by Subdwellers from Twisted Machinery 3081 | -10/Subcaves | Befriended Subdweller 3081 | -10/Subcaves | Befriended Subdweller 3100 | -10/Subcaves | Shifting Twisted Machinery released Mak. Light Armor Plating 3526 | -10/Subcaves | Shifting Twisted Machinery released Hvy. Riot Gun 3853 | -10/Subcaves | Found SUBCON Basin 4005 | -10/Subcaves | Entered Recycling 4005 | -7/Recycling | Accompanied by 5 allies 4036 | -7/Recycling | Build established: Hauler-Mutant 4193 | -7/Recycling | Core integrity fell below 50% 4203 | -7/Recycling | Lost 4 allies 4216 | -7/Recycling | Destroyed 8 combat bots 4220 | -7/Recycling | Lost 4 parts (1p2n1w) 4313 | -7/Recycling | Destroyed by D-53 Grenadier with Mini Grenade Launcher Last Messages --------------- 04274_ Attempting to rewire R-06 Scavenger. 04275_ R-06 Scavenger collects Power Amplifier. 04275_ Attempting to rewire R-06 Scavenger. 04278_ U-05 Engineer lays Concrete. 04278_ Attempting to rewire R-06 Scavenger. 04278_ R-06 Scavenger rewired. 04279_ U-05 Engineer lays Concrete. 04282_ Acquired Lgt. Armored Exoskeleton. 04282_ U-05 Engineer lays Concrete. 04288_ U-05 Engineer builds a Wall. 04291_ Acquired 46 matter. 04293_ Acquired 24 matter. 04306_ Destroyed Targeting Computer. 04306_ Commando 4a destroyed. 04306_ D-53 Grenadier springs to life. 04309_ T-07 Excavator destroyed. 04311_ Hvy. Riot Gun destroyed. 04311_ A-02 Transporter destroyed. 04311_ K-01 Serf destroyed. 04311_ D-53 Grenadier destroyed. Map ----- +----------------------------------------------------+ | ?????????????????????????????????????????????????? | | ?????????????????????????????????????????????????? | | ?????????????????????????????????????????????????? | | ?????????????????????????????????????????????????? | | ?????????????????????????????????????????????????? | | ?????????????????????????????????????????????????? | | ?????????????????????????????????????????????????? | | ?????????????????????????????????????????????????? | | ?????????????????????????????????????????????????? | | ?????????????????????????????????????????????????? | | ?????????????????????????????????????????????????? | | ?????????????????????????????????????????????????? | | ?????????????????????????????????????????????????? | | ??????????????????##############?????????????????? | | ??????????????????#l r[ ! #?????????????????? | | ??????????????????# * +?????????????????? | | ??????????????????# ![i k #?????????????????? | | ??????????????????# #?????????????????? | | ?????????????????## k ! #?????????????????? | | ????????????????## a ! % #?????????????????? | | ???????????????## a gr# ????????????????? | | ??????????? ## % # #???????????????? | | ???????????? r = # #???????????????? | | ???????????????# d % # #???????????????? | | ???????????????# % % # +???????????????? | | ???????????????# @ # #???????????????? | | ?????????????????# ### ##??????????????? | | ?????????????????## # % #??????????????? | | ????????????????###### d +#* ######?????????? | | ???????????????""" # %!# u # #?????????? | | ???????????????""" r # % % % #?????????? | | ???????????????""" r + ###?????????? | | ?????????????+ # # %# #?????????? | | ?????????????# "?# %# ###?????????? | | ?????????????# ??# # # #?????????? | | ?????????????# ???# # ] #?????????? | | ?????????????# ????# # = d ###?????????? | | ??????????????####?????# ###########???????????? | | ???????????????????????# #?????????????????????? | | ???????????????????????# #?????????##??????????? | | ???????????????????????# ########## #??????????? | | ???????????????????????# ## #??????????? | | ???????????????????????# ## ##?????????? | | ???????????????????????# ## #?????????? | | ???????????????????????# ## #??????????? | | ???????????????????????# ## #??????????? | | ??????????????????????## ## #??????????? | | ??????????????????????# # #??????????? | | ??????????????????????# # #??????????? | | ??????????????????????# + #??????????? | +----------------------------------------------------+ Best States ------------- Heat Dissipation 25 Energy Generation 16 Energy Capacity 290 Matter Stores 300 Matter Capacity 300 Sight Range 16 Terrain Scan Density 10 Armor Coverage 800 Evasion (%) 50 Recoil Reduction 2 Item Schematics ----------------- None Robot Schematics ------------------ None Fabricated ------------ Nothing Repaired ---------- Nothing Studied --------- None Alien Tech Used ----------------- None Achievements -------------- SUBSUB Challenges ------------ None Game ------ Seed FlakShiftCompanion Manual? 0 Play Time 00:22:21 Cumulative 508.6 hours Start 2025.11.16 @ 12:27:54 End 2025.11.16 @ 19:42:12 Sessions 2 Manual Loads 0 Difficulty Rogue Special Mode None Game No. 685 Rogue 685 Adventurer 0 Explorer 0 Win Type - Total 16 Types 8/0/2/2/1/0/2/1/0/0 Lore% 91 Gallery% 85 Achievement% 67 Wizard Run 0 Options --------- Layout 2 ASCII 0 Keyboard 0 Movement Mouse Keybinds 0 Fullscreen 1 Font 24/Terminus Map View 50x49 Zoom Use 0% Tactical HUD 1 Map Filters NONE Filters NONE Steam 1 RUN: f32de106-b27f-40b3-ad3d-59b9c6e11939